[Event "December 19 Early 2023"]
[Site "https://www.chess.com"]
[Date "2023.12.19"]
[Round "11"]
[White "Hong, Andrew"]
[Black "Ter-Sahakyan, Samvel"]
[Result "1-0"]
[Board "18"]
[TimeControl "180+1"]
[WhiteFideId "2099438"]
[BlackFideId "13302531"]
[WhiteElo "2460"]
[BlackElo "2556"]
[WhiteTeam "USA"]
[BlackTeam "ARM"]
[WhiteClock "0:00:04"]
[BlackClock "0:00:00"]

1. e4 {[%clk 0:03:00]}  e5 {[%clk 0:03:00]} 2. Nf3 {[%clk 0:03:00]}  Nc6 {[%clk 0:03:00]} 3. Bb5 {[%clk 0:03:00]}  a6 {[%clk 0:03:00]} 4. Ba4 {[%clk 0:03:00]}  Bc5 {[%clk 0:03:00]} 5. c3 {[%clk 0:03:00]}  Nge7 {[%clk 0:02:58]} 6. d4 {[%clk 0:03:00]}  exd4 {[%clk 0:02:58]} 7. cxd4 {[%clk 0:03:01]}  Bb4+ {[%clk 0:02:59]} 8. Bd2 {[%clk 0:03:02]}  Bxd2+ {[%clk 0:02:59]} 9. Nbxd2 {[%clk 0:03:02]}  d5 {[%clk 0:02:57]} 10. exd5 {[%clk 0:03:02]}  Qxd5 {[%clk 0:02:43]} 11. O-O {[%clk 0:03:02]}  O-O {[%clk 0:02:43]} 12. h3 {[%clk 0:03:02]}  Qh5 {[%clk 0:02:35]} 13. Re1 {[%clk 0:03:01]}  Be6 {[%clk 0:02:27]} 14. Rc1 {[%clk 0:03:00]}  Rad8 {[%clk 0:02:25]} 15. Rc5 {[%clk 0:02:48]}  Qh6 {[%clk 0:02:06]} 16. Ne4 {[%clk 0:02:43]}  Bd5 {[%clk 0:02:02]} 17. Bc2 {[%clk 0:02:37]}  Nf5 {[%clk 0:01:54]} 18. Bb3 {[%clk 0:01:52]}  Bxb3 {[%clk 0:01:08]} 19. Qxb3 {[%clk 0:01:53]}  Nfxd4 {[%clk 0:01:03]} 20. Nxd4 {[%clk 0:01:53]}  Nxd4 {[%clk 0:01:02]} 21. Qxb7 {[%clk 0:01:53]}  Ne6 {[%clk 0:00:57]} 22. Rc2 {[%clk 0:01:42]}  Qg6 {[%clk 0:00:47]} 23. Qxa6 {[%clk 0:01:35]}  Rd4 {[%clk 0:00:45]} 24. Qc6 {[%clk 0:01:20]}  Rfd8 {[%clk 0:00:41]} 25. Rc3 {[%clk 0:01:06]}  h5 {[%clk 0:00:35]} 26. Rg3 {[%clk 0:01:05]}  Qf5 {[%clk 0:00:36]} 27. Rf3 {[%clk 0:01:00]}  Qa5 {[%clk 0:00:34]} 28. Nc3 {[%clk 0:00:56]}  Qg5 {[%clk 0:00:25]} 29. Rg3 {[%clk 0:00:43]}  Qf5 {[%clk 0:00:25]} 30. Rf3 {[%clk 0:00:41]}  Qg5 {[%clk 0:00:25]} 31. Rxf7 {[%clk 0:00:29]}  Nf4 {[%clk 0:00:20]} 32. Rxc7 {[%clk 0:00:11]}  Nxh3+ {[%clk 0:00:17]} 33. Kf1 {[%clk 0:00:11]}  Nf4 {[%clk 0:00:08]} 34. g3 {[%clk 0:00:09]}  Nd3 {[%clk 0:00:05]} 35. Re8+ {[%clk 0:00:08]}  Rxe8 {[%clk 0:00:05]} 36. Qxe8+ {[%clk 0:00:09]}  Kh7 {[%clk 0:00:06]} 37. Rc8 {[%clk 0:00:05]}  Qf5 {[%clk 0:00:05]} 38. Qe3 {[%clk 0:00:03]}  Rd7 {[%clk 0:00:04]} 39. Qe4 {[%clk 0:00:02]}  Qxe4 {[%clk 0:00:04]} 40. Nxe4 {[%clk 0:00:03]}  Nxb2 {[%clk 0:00:04]} 41. Rc6 {[%clk 0:00:03]}  Kg8 {[%clk 0:00:02]} 42. Ng5 {[%clk 0:00:04]}  Rd8 {[%clk 0:00:02]} 43. Rc7 {[%clk 0:00:04]}  Ra8 {[%clk 0:00:01]} 44. Ne6 {[%clk 0:00:03]}  g6 {[%clk 0:00:01]} 45. Rg7+ {[%clk 0:00:04]}  Kh8 {[%clk 0:00:02]} 46. Rxg6 {[%clk 0:00:04]}  Kh7 {[%clk 0:00:02]} 47. Rg5 {[%clk 0:00:04]}  Kh6 {[%clk 0:00:03]} 48. Rf5 {[%clk 0:00:04]}  Rxa2 {[%clk 0:00:02]} 49. Nf4 {[%clk 0:00:04]}  Nd1 {[%clk 0:00:01]} 50. Rxh5+ {[%clk 0:00:04]}  Kg7 {[%clk 0:00:02]} 51. Nh3 {[%clk 0:00:04]}  Kg6 {[%clk 0:00:00]} 52. Re5 {[%clk 0:00:04]} 1-0

[Event "December 19 Early 2023"]
[Site "https://www.chess.com"]
[Date "2023.12.19"]
[Round "11"]
[White "Yeletsky, Ivan"]
[Black "Sevostianov, Vladimir"]
[Result "1-0"]
[Board "23"]
[TimeControl "180+1"]
[WhiteFideId "24180327"]
[BlackFideId "4144163"]
[WhiteElo "2379"]
[BlackElo "2150"]
[WhiteTeam "RUS"]
[BlackTeam "RUS"]
[WhiteClock "0:01:15"]
[BlackClock "0:01:27"]

1. e4 {[%clk 0:03:00]}  c5 {[%clk 0:02:59]} 2. Nf3 {[%clk 0:03:00]}  Nc6 {[%clk 0:02:58]} 3. Bc4 {[%clk 0:03:00]}  e6 {[%clk 0:02:57]} 4. O-O {[%clk 0:03:00]}  Nge7 {[%clk 0:02:56]} 5. Re1 {[%clk 0:02:58]}  d5 {[%clk 0:02:55]} 6. exd5 {[%clk 0:02:58]}  exd5 {[%clk 0:02:55]} 7. Bb5 {[%clk 0:02:59]}  Be6 {[%clk 0:02:45]} 8. Ng5 {[%clk 0:02:50]}  Qd7 {[%clk 0:02:43]} 9. Nc3 {[%clk 0:02:18]}  O-O-O {[%clk 0:02:36]} 10. d3 {[%clk 0:02:03]}  a6 {[%clk 0:02:29]} 11. Na4 {[%clk 0:01:55]}  Qd6 {[%clk 0:02:20]} 12. Bxc6 {[%clk 0:01:27]}  Qxc6 {[%clk 0:02:17]} 13. b3 {[%clk 0:01:25]}  Ng6 {[%clk 0:02:14]} 14. Bd2 {[%clk 0:01:17]}  h6 {[%clk 0:01:53]} 15. Nxe6 {[%clk 0:01:16]}  fxe6 {[%clk 0:01:52]} 16. Qg4 {[%clk 0:01:17]}  Ne7 {[%clk 0:01:44]} 17. Rxe6 {[%clk 0:01:16]}  Qc7 {[%clk 0:01:27]} 18. Rc6+ {[%clk 0:01:15]} 1-0

[Event "December 19 Early 2023"]
[Site "https://www.chess.com"]
[Date "2023.12.19"]
[Round "11"]
[White "Agibileg, Uurtsaikh"]
[Black "Jones, Gawain C B"]
[Result "0-1"]
[Board "27"]
[TimeControl "180+1"]
[WhiteFideId "4901606"]
[BlackFideId "409561"]
[WhiteElo "2288"]
[BlackElo "2645"]
[WhiteTeam "MGL"]
[BlackTeam "ENG"]
[WhiteClock "0:02:37"]
[BlackClock "0:02:43"]

1. d4 {[%clk 0:03:00]}  Nf6 {[%clk 0:02:59]} 2. c4 {[%clk 0:03:01]}  g6 {[%clk 0:03:00]} 3. Nc3 {[%clk 0:03:01]}  Bg7 {[%clk 0:03:00]} 4. e4 {[%clk 0:03:02]}  O-O {[%clk 0:03:01]} 5. Be2 {[%clk 0:03:02]}  d6 {[%clk 0:03:01]} 6. Nf3 {[%clk 0:03:03]}  e5 {[%clk 0:03:01]} 7. O-O {[%clk 0:03:03]}  Nbd7 {[%clk 0:03:01]} 8. Be3 {[%clk 0:03:03]}  Qe7 {[%clk 0:03:00]} 9. d5 {[%clk 0:02:56]}  c5 {[%clk 0:03:00]} 10. Ne1 {[%clk 0:02:53]}  Kh8 {[%clk 0:03:00]} 11. g4 {[%clk 0:02:53]}  Ng8 {[%clk 0:03:00]} 12. Qd2 {[%clk 0:02:51]}  f5 {[%clk 0:03:00]} 13. gxf5 {[%clk 0:02:52]}  gxf5 {[%clk 0:03:00]} 14. exf5 {[%clk 0:02:52]}  Ndf6 {[%clk 0:03:01]} 15. Kh1 {[%clk 0:02:52]}  Bxf5 {[%clk 0:03:00]} 16. Rg1 {[%clk 0:02:51]}  Ne4 {[%clk 0:03:00]} 17. Nxe4 {[%clk 0:02:50]}  Bxe4+ {[%clk 0:03:00]} 18. f3 {[%clk 0:02:51]}  Bg6 {[%clk 0:03:01]} 19. Bd3 {[%clk 0:02:45]}  e4 {[%clk 0:02:59]} 20. fxe4 {[%clk 0:02:44]}  Bxe4+ {[%clk 0:02:56]} 21. Bxe4 {[%clk 0:02:45]}  Qxe4+ {[%clk 0:02:57]} 22. Ng2 {[%clk 0:02:46]}  Nf6 {[%clk 0:02:45]} 23. Bh6 {[%clk 0:02:43]}  Bxh6 {[%clk 0:02:43]} 24. Qxh6 {[%clk 0:02:37]}  Ng4 {[%clk 0:02:43]} 0-1

[Event "December 19 Early 2023"]
[Site "https://www.chess.com"]
[Date "2023.12.19"]
[Round "11"]
[White "Harutjunyan, Gevorg"]
[Black "Adla, Diego"]
[Result "0-1"]
[Board "28"]
[TimeControl "180+1"]
[WhiteFideId "13300873"]
[BlackFideId "100072"]
[WhiteElo "2436"]
[BlackElo "2377"]
[WhiteTeam "ARM"]
[BlackTeam "ARG"]
[WhiteClock "0:00:00"]
[BlackClock "0:01:05"]

1. e4 {[%clk 0:03:00]}  e5 {[%clk 0:02:59]} 2. Nf3 {[%clk 0:03:00]}  Nc6 {[%clk 0:02:58]} 3. d4 {[%clk 0:03:00]}  exd4 {[%clk 0:02:58]} 4. Nxd4 {[%clk 0:03:01]}  Nf6 {[%clk 0:02:58]} 5. Nc3 {[%clk 0:03:01]}  Bb4 {[%clk 0:02:57]} 6. Nxc6 {[%clk 0:03:01]}  bxc6 {[%clk 0:02:57]} 7. Bd3 {[%clk 0:03:02]}  O-O {[%clk 0:02:58]} 8. O-O {[%clk 0:03:02]}  d5 {[%clk 0:02:58]} 9. exd5 {[%clk 0:03:03]}  Bg4 {[%clk 0:02:58]} 10. Ne2 {[%clk 0:02:57]}  cxd5 {[%clk 0:02:56]} 11. h3 {[%clk 0:02:57]}  Bh5 {[%clk 0:02:54]} 12. c3 {[%clk 0:02:57]}  Bd6 {[%clk 0:02:52]} 13. Qa4 {[%clk 0:02:57]}  Bg6 {[%clk 0:02:35]} 14. Rd1 {[%clk 0:02:46]}  Re8 {[%clk 0:02:31]} 15. Be3 {[%clk 0:02:45]}  c5 {[%clk 0:02:21]} 16. Bb5 {[%clk 0:02:37]}  Re4 {[%clk 0:02:17]} 17. Qa6 {[%clk 0:02:20]}  Qe7 {[%clk 0:02:15]} 18. Bg5 {[%clk 0:01:49]}  Re6 {[%clk 0:01:47]} 19. Kf1 {[%clk 0:01:29]}  h6 {[%clk 0:01:42]} 20. Bxf6 {[%clk 0:00:54]}  Rxf6 {[%clk 0:01:42]} 21. Qc6 {[%clk 0:00:46]}  Rb8 {[%clk 0:01:35]} 22. Rxd5 {[%clk 0:00:23]}  Bg3 {[%clk 0:01:32]} 23. Nxg3 {[%clk 0:00:14]}  Rxc6 {[%clk 0:01:28]} 24. Bxc6 {[%clk 0:00:14]}  Rxb2 {[%clk 0:01:25]} 25. Re1 {[%clk 0:00:13]}  Qf6 {[%clk 0:01:25]} 26. Re8+ {[%clk 0:00:04]}  Kh7 {[%clk 0:01:24]} 27. f3 {[%clk 0:00:04]}  Qxc6 {[%clk 0:01:17]} 28. Rdd8 {[%clk 0:00:05]}  Bd3+ {[%clk 0:01:13]} 29. Kg1 {[%clk 0:00:04]}  c4 {[%clk 0:01:12]} 30. Kh2 {[%clk 0:00:04]}  Qxf3 {[%clk 0:01:05]} 31. Rh8+ {[%clk 0:00:04]}  Kg6 {[%clk 0:01:05]} 32. Rd6+ {[%clk 0:00:00]}  f6 {[%clk 0:01:05]} 0-1

[Event "December 19 Early 2023"]
[Site "https://www.chess.com"]
[Date "2023.12.19"]
[Round "11"]
[White "Yeritsyan, Hayk"]
[Black "Materia, Marco"]
[Result "0-1"]
[Board "30"]
[TimeControl "180+1"]
[WhiteFideId "13307320"]
[BlackFideId "45150451"]
[WhiteElo "2130"]
[BlackElo "2451"]
[WhiteTeam "ARM"]
[BlackTeam "FRA"]
[WhiteClock "0:01:27"]
[BlackClock "0:01:53"]

1. d4 {[%clk 0:02:56]}  Nf6 {[%clk 0:03:00]} 2. c4 {[%clk 0:02:56]}  e6 {[%clk 0:03:00]} 3. Nf3 {[%clk 0:02:56]}  d5 {[%clk 0:03:00]} 4. e3 {[%clk 0:02:54]}  Be7 {[%clk 0:03:00]} 5. Nbd2 {[%clk 0:02:55]}  O-O {[%clk 0:03:01]} 6. Bd3 {[%clk 0:02:56]}  Nbd7 {[%clk 0:02:58]} 7. O-O {[%clk 0:02:56]}  b6 {[%clk 0:02:57]} 8. e4 {[%clk 0:02:56]}  dxe4 {[%clk 0:02:57]} 9. Nxe4 {[%clk 0:02:57]}  Bb7 {[%clk 0:02:58]} 10. Qe2 {[%clk 0:02:56]}  c5 {[%clk 0:02:55]} 11. Rd1 {[%clk 0:02:53]}  Nxe4 {[%clk 0:02:51]} 12. Bxe4 {[%clk 0:02:54]}  Bxe4 {[%clk 0:02:51]} 13. Qxe4 {[%clk 0:02:54]}  Nf6 {[%clk 0:02:52]} 14. Qe2 {[%clk 0:02:55]}  cxd4 {[%clk 0:02:47]} 15. Nxd4 {[%clk 0:02:55]}  Qc8 {[%clk 0:02:47]} 16. b3 {[%clk 0:02:53]}  Rd8 {[%clk 0:02:47]} 17. Bb2 {[%clk 0:02:53]}  Qb7 {[%clk 0:02:46]} 18. Re1 {[%clk 0:02:47]}  Bb4 {[%clk 0:02:43]} 19. Red1 {[%clk 0:02:47]}  Rd7 {[%clk 0:02:36]} 20. a3 {[%clk 0:02:40]}  Bf8 {[%clk 0:02:33]} 21. Nf3 {[%clk 0:02:32]}  Rad8 {[%clk 0:02:32]} 22. Ne5 {[%clk 0:02:32]}  Qe4 {[%clk 0:02:22]} 23. Qxe4 {[%clk 0:02:28]}  Rxd1+ {[%clk 0:02:21]} 24. Qe1 {[%clk 0:02:28]}  Rxe1+ {[%clk 0:02:22]} 25. Rxe1 {[%clk 0:02:29]}  Rd2 {[%clk 0:02:19]} 26. Rb1 {[%clk 0:02:15]}  Bc5 {[%clk 0:02:17]} 27. b4 {[%clk 0:02:08]}  Bxf2+ {[%clk 0:02:16]} 28. Kf1 {[%clk 0:02:09]}  Be3 {[%clk 0:02:09]} 29. Nc6 {[%clk 0:01:45]}  Rf2+ {[%clk 0:02:07]} 30. Ke1 {[%clk 0:01:45]}  Rxg2 {[%clk 0:02:07]} 31. Bxf6 {[%clk 0:01:45]}  Rg1+ {[%clk 0:02:04]} 32. Ke2 {[%clk 0:01:45]}  Rxb1 {[%clk 0:02:05]} 33. Be7 {[%clk 0:01:35]}  Bf4 {[%clk 0:02:03]} 34. Nxa7 {[%clk 0:01:35]}  Bxh2 {[%clk 0:02:02]} 35. c5 {[%clk 0:01:32]}  bxc5 {[%clk 0:02:02]} 36. Bxc5 {[%clk 0:01:33]}  Rb2+ {[%clk 0:01:58]} 37. Kd1 {[%clk 0:01:30]}  h5 {[%clk 0:01:58]} 38. a4 {[%clk 0:01:28]}  h4 {[%clk 0:01:58]} 39. Nc6 {[%clk 0:01:26]}  h3 {[%clk 0:01:58]} 40. Nd4 {[%clk 0:01:26]}  Bg1 {[%clk 0:01:56]} 41. Nf3 {[%clk 0:01:26]}  Bxc5 {[%clk 0:01:53]} 42. b5 {[%clk 0:01:27]} 0-1

[Event "December 19 Early 2023"]
[Site "https://www.chess.com"]
[Date "2023.12.19"]
[Round "11"]
[White "Karas, Marek"]
[Black "Arabidze, Meri"]
[Result "0-1"]
[Board "36"]
[TimeControl "180+1"]
[WhiteFideId "14928558"]
[BlackFideId "13604040"]
[WhiteElo "2218"]
[BlackElo "2416"]
[WhiteTeam "CZE"]
[BlackTeam "GEO"]
[WhiteClock "0:00:00"]
[BlackClock "0:00:10"]

1. d4 {[%clk 0:03:00]}  Nf6 {[%clk 0:02:59]} 2. Nf3 {[%clk 0:03:00]}  e6 {[%clk 0:03:00]} 3. c4 {[%clk 0:03:00]}  Bb4+ {[%clk 0:02:59]} 4. Bd2 {[%clk 0:03:00]}  Qe7 {[%clk 0:02:59]} 5. e3 {[%clk 0:02:58]}  O-O {[%clk 0:02:56]} 6. Bd3 {[%clk 0:02:57]}  Bxd2+ {[%clk 0:02:55]} 7. Qxd2 {[%clk 0:02:56]}  d6 {[%clk 0:02:56]} 8. Nc3 {[%clk 0:02:42]}  e5 {[%clk 0:02:55]} 9. Bc2 {[%clk 0:02:11]}  h6 {[%clk 0:02:42]} 10. O-O-O {[%clk 0:01:51]}  Nc6 {[%clk 0:02:30]} 11. Nd5 {[%clk 0:01:29]}  Nxd5 {[%clk 0:02:26]} 12. cxd5 {[%clk 0:01:30]}  Nd8 {[%clk 0:02:10]} 13. dxe5 {[%clk 0:01:25]}  dxe5 {[%clk 0:02:11]} 14. d6 {[%clk 0:01:18]}  cxd6 {[%clk 0:02:07]} 15. Qxd6 {[%clk 0:01:19]}  Qxd6 {[%clk 0:02:06]} 16. Rxd6 {[%clk 0:01:19]}  Nc6 {[%clk 0:02:07]} 17. Be4 {[%clk 0:01:10]}  Be6 {[%clk 0:01:55]} 18. Bxc6 {[%clk 0:01:08]}  bxc6 {[%clk 0:01:53]} 19. b3 {[%clk 0:01:06]}  Bd5 {[%clk 0:01:23]} 20. Nxe5 {[%clk 0:00:59]}  Rfe8 {[%clk 0:01:11]} 21. Nf3 {[%clk 0:00:50]}  a5 {[%clk 0:01:07]} 22. Kb2 {[%clk 0:00:46]}  a4 {[%clk 0:01:06]} 23. Nd4 {[%clk 0:00:36]}  axb3 {[%clk 0:00:58]} 24. axb3 {[%clk 0:00:37]}  Rab8 {[%clk 0:00:42]} 25. Kc3 {[%clk 0:00:33]}  Bxg2 {[%clk 0:00:39]} 26. Rg1 {[%clk 0:00:33]}  Bd5 {[%clk 0:00:39]} 27. Rxh6 {[%clk 0:00:26]}  c5 {[%clk 0:00:38]} 28. Nf5 {[%clk 0:00:21]}  g6 {[%clk 0:00:32]} 29. Nd6 {[%clk 0:00:10]}  Rxb3+ {[%clk 0:00:31]} 30. Kc2 {[%clk 0:00:10]}  Reb8 {[%clk 0:00:25]} 31. Rh5 {[%clk 0:00:10]}  Rb2+ {[%clk 0:00:22]} 32. Kc1 {[%clk 0:00:10]}  Rb1+ {[%clk 0:00:22]} 33. Kd2 {[%clk 0:00:11]}  Rxg1 {[%clk 0:00:18]} 34. Rxd5 {[%clk 0:00:09]}  Rd8 {[%clk 0:00:19]} 35. e4 {[%clk 0:00:07]}  Rg2 {[%clk 0:00:16]} 36. Ke3 {[%clk 0:00:06]}  Rxh2 {[%clk 0:00:16]} 37. e5 {[%clk 0:00:04]}  c4 {[%clk 0:00:14]} 38. Rc5 {[%clk 0:00:04]}  Rh4 {[%clk 0:00:12]} 39. Rxc4 {[%clk 0:00:01]}  Rxc4 {[%clk 0:00:11]} 40. Nxc4 {[%clk 0:00:02]}  Kf8 {[%clk 0:00:11]} 41. Ke4 {[%clk 0:00:02]}  Ke7 {[%clk 0:00:11]} 42. Ne3 {[%clk 0:00:00]}  Ra8 {[%clk 0:00:10]} 0-1

[Event "December 19 Early 2023"]
[Site "https://www.chess.com"]
[Date "2023.12.19"]
[Round "11"]
[White "Zemlyanskii, Ivan"]
[Black "Manukyan, Sargis V."]
[Result "1-0"]
[Board "37"]
[TimeControl "180+1"]
[WhiteFideId "24249971"]
[BlackFideId "13303465"]
[WhiteElo "2418"]
[BlackElo "2236"]
[WhiteTeam "RUS"]
[BlackTeam "ARM"]
[WhiteClock "0:00:03"]
[BlackClock "0:00:00"]

1. d4 {[%clk 0:03:00]}  Nf6 {[%clk 0:02:55]} 2. c4 {[%clk 0:03:01]}  c5 {[%clk 0:02:55]} 3. d5 {[%clk 0:03:01]}  e6 {[%clk 0:02:56]} 4. Bf4 {[%clk 0:03:00]}  a6 {[%clk 0:02:48]} 5. Nc3 {[%clk 0:02:52]}  exd5 {[%clk 0:02:44]} 6. cxd5 {[%clk 0:02:47]}  b5 {[%clk 0:02:43]} 7. Nf3 {[%clk 0:02:42]}  d6 {[%clk 0:02:33]} 8. e3 {[%clk 0:02:17]}  Bb7 {[%clk 0:02:22]} 9. e4 {[%clk 0:02:07]}  b4 {[%clk 0:02:17]} 10. Na4 {[%clk 0:02:06]}  Nxe4 {[%clk 0:01:59]} 11. Bc4 {[%clk 0:01:54]}  Be7 {[%clk 0:01:50]} 12. O-O {[%clk 0:01:54]}  O-O {[%clk 0:01:37]} 13. Re1 {[%clk 0:01:54]}  Nf6 {[%clk 0:01:37]} 14. Nxc5 {[%clk 0:01:47]}  dxc5 {[%clk 0:01:26]} 15. d6 {[%clk 0:01:48]}  Bxd6 {[%clk 0:01:09]} 16. Bxd6 {[%clk 0:01:44]}  Re8 {[%clk 0:00:59]} 17. Bxc5 {[%clk 0:01:25]}  Rxe1+ {[%clk 0:00:51]} 18. Nxe1 {[%clk 0:01:12]}  Qc8 {[%clk 0:00:36]} 19. Rc1 {[%clk 0:01:11]}  Nc6 {[%clk 0:00:31]} 20. Qb3 {[%clk 0:00:55]}  Ne5 {[%clk 0:00:20]} 21. Qxb4 {[%clk 0:00:35]}  Nxc4 {[%clk 0:00:20]} 22. Qxc4 {[%clk 0:00:32]}  Bd5 {[%clk 0:00:20]} 23. Qa4 {[%clk 0:00:32]}  Qb7 {[%clk 0:00:20]} 24. Bd4 {[%clk 0:00:29]}  Ne4 {[%clk 0:00:17]} 25. Qa5 {[%clk 0:00:22]}  Re8 {[%clk 0:00:11]} 26. b3 {[%clk 0:00:16]}  h6 {[%clk 0:00:10]} 27. Rc7 {[%clk 0:00:09]}  Nd2 {[%clk 0:00:10]} 28. Nd3 {[%clk 0:00:06]}  Qb8 {[%clk 0:00:04]} 29. Be5 {[%clk 0:00:06]}  Qa8 {[%clk 0:00:01]} 30. Qxd2 {[%clk 0:00:05]}  Bxg2 {[%clk 0:00:01]} 31. Qf4 {[%clk 0:00:02]}  Bh1 {[%clk 0:00:00]} 32. Qg3 {[%clk 0:00:03]} 1-0